Workbook

Sheet Total
A1: Numb | B1: Remo Code | C1: Guıde Name | D1: Excursion | E1: Shopping | F1: Bonus | G1: Total Comm | H1: Signature | I1: Remarks
A2: 1 | B2: =IFERROR(VLOOKUP(C2,'Remo Code'!$B$2:$C$499,2,0),"") ->  | D2: =SUMPRODUCT(SUMIF(INDIRECT("'"&D$1&"'!"&"C2:C1000"),$C2,INDIRECT("'"&D$1&"'!"&"h2:h1000"))) -> 0 | E2: =SUMPRODUCT(SUMIF(INDIRECT("'"&E$1&"'!"&"C3:C1000"),$C2,INDIRECT("'"&E$1&"'!"&"E3:E1000"))) -> 0 | F2: =SUMPRODUCT(SUMIF(INDIRECT("'"&F$1&"'!"&"B3:B1000"),$C2,INDIRECT("'"&F$1&"'!"&"d3:d1000"))) -> 0 | G2: =SUM(D2:F2) -> 0
A3: 2 | B3: =IFERROR(VLOOKUP(C3,'Remo Code'!$B$2:$C$499,2,0),"") ->  | D3: =SUMPRODUCT(SUMIF(INDIRECT("'"&D$1&"'!"&"C2:C1000"),$C3,INDIRECT("'"&D$1&"'!"&"h2:h1000"))) -> 0 | E3: 0 | F3: =SUMPRODUCT(SUMIF(INDIRECT("'"&F$1&"'!"&"B3:B1000"),$C3,INDIRECT("'"&F$1&"'!"&"d3:d1000"))) -> 0 | G3: =SUM(D3:F3) -> 0
A4: 3 | B4: =IFERROR(VLOOKUP(C4,'Remo Code'!$B$2:$C$499,2,0),"") ->  | D4: 0 | E4: 0 | F4: 0 | G4: 0
A5: 4 | B5: =IFERROR(VLOOKUP(C5,'Remo Code'!$B$2:$C$499,2,0),"") ->  | D5: 0 | E5: 0 | F5: 0 | G5: =SUM(D5:F5) -> 0
A6: 5 | B6: =IFERROR(VLOOKUP(C6,'Remo Code'!$B$2:$C$499,2,0),"") ->  | D6: 0 | E6: 0 | F6: 0 | G6: 0
A7: 6 | B7: =IFERROR(VLOOKUP(C7,'Remo Code'!$B$2:$C$499,2,0),"") ->  | D7: 0 | E7: 0 | F7: 0 | G7: =SUM(D7:F7) -> 0
A8: 7 | B8: =IFERROR(VLOOKUP(C8,'Remo Code'!$B$2:$C$499,2,0),"") ->  | D8: 0 | E8: 0 | F8: 0 | G8: 0
A9: 8 | B9: =IFERROR(VLOOKUP(C9,'Remo Code'!$B$2:$C$499,2,0),"") ->  | D9: 0 | E9: 0 | F9: 0 | G9: 0
A10: 9 | B10: =IFERROR(VLOOKUP(C10,'Remo Code'!$B$2:$C$499,2,0),"") ->  | D10: 0 | E10: 0 | F10: 0 | G10: 0
A11: 10 | B11: =IFERROR(VLOOKUP(C11,'Remo Code'!$B$2:$C$499,2,0),"") ->  | D11: 0 | E11: 0 | F11: 0 | G11: 0
A12: 11 | B12: =IFERROR(VLOOKUP(C12,'Remo Code'!$B$2:$C$499,2,0),"") ->  | D12: 0 | E12: 0 | F12: 0 | G12: 0
A13: 12 | B13: =IFERROR(VLOOKUP(C13,'Remo Code'!$B$2:$C$499,2,0),"") ->  | D13: 0 | E13: 0 | F13: 0 | G13: 0
A14: 13 | B14: =IFERROR(VLOOKUP(C14,'Remo Code'!$B$2:$C$499,2,0),"") ->  | D14: 0 | E14: 0 | F14: 0 | G14: 0
A15: 14 | B15: =IFERROR(VLOOKUP(C15,'Remo Code'!$B$2:$C$499,2,0),"") ->  | D15: 0 | E15: 0 | F15: 0 | G15: 0
A16: 15 | B16: =IFERROR(VLOOKUP(C16,'Remo Code'!$B$2:$C$499,2,0),"") ->  | D16: 0 | E16: 0 | F16: 0 | G16: 0
A17: 16 | B17: =IFERROR(VLOOKUP(C17,'Remo Code'!$B$2:$C$499,2,0),"") ->  | D17: 0 | E17: 0 | F17: 0 | G17: 0
A18: 17 | B18: =IFERROR(VLOOKUP(C18,'Remo Code'!$B$2:$C$499,2,0),"") ->  | D18: 0 | E18: 0 | F18: 0 | G18: 0
A19: 18 | B19: =IFERROR(VLOOKUP(C19,'Remo Code'!$B$2:$C$499,2,0),"") ->  | D19: 0 | E19: 0 | F19: 0 | G19: 0
A20: 19 | B20: =IFERROR(VLOOKUP(C20,'Remo Code'!$B$2:$C$499,2,0),"") ->  | D20: 0 | E20: 0 | F20: 0 | G20: 0
A21: 20 | B21: =IFERROR(VLOOKUP(C21,'Remo Code'!$B$2:$C$499,2,0),"") ->  | D21: 0 | E21: 0 | F21: 0 | G21: 0
A22: 21 | B22: =IFERROR(VLOOKUP(C22,'Remo Code'!$B$2:$C$499,2,0),"") ->  | D22: 0 | E22: 0 | F22: 0 | G22: 0
A23: 22 | B23: =IFERROR(VLOOKUP(C23,'Remo Code'!$B$2:$C$499,2,0),"") ->  | D23: 0 | E23: 0 | F23: 0 | G23: 0
A24: 23 | B24: =IFERROR(VLOOKUP(C24,'Remo Code'!$B$2:$C$499,2,0),"") ->  | D24: 0 | E24: 0 | F24: 0 | G24: 0
A25: 24 | B25: =IFERROR(VLOOKUP(C25,'Remo Code'!$B$2:$C$499,2,0),"") ->  | D25: 0 | E25: 0 | F25: 0 | G25: 0
A26: 25 | B26: =IFERROR(VLOOKUP(C26,'Remo Code'!$B$2:$C$499,2,0),"") ->  | D26: 0 | E26: 0 | F26: 0 | G26: =SUM(D26:F26) -> 0
A27: 26 | B27: =IFERROR(VLOOKUP(C27,'Remo Code'!$B$2:$C$499,2,0),"") ->  | D27: 0 | E27: 0 | F27: 0 | G27: 0
A28: 27 | B28: =IFERROR(VLOOKUP(C28,'Remo Code'!$B$2:$C$499,2,0),"") ->  | D28: 0 | E28: 0 | F28: 0 | G28: 0
A29: 28 | B29: =IFERROR(VLOOKUP(C29,'Remo Code'!$B$2:$C$499,2,0),"") ->  | D29: 0 | E29: 0 | F29: 0 | G29: 0
A30: 29 | B30: =IFERROR(VLOOKUP(C30,'Remo Code'!$B$2:$C$499,2,0),"") ->  | D30: 0 | E30: 0 | F30: 0 | G30: 0
A31: 30 | B31: =IFERROR(VLOOKUP(C31,'Remo Code'!$B$2:$C$499,2,0),"") ->  | D31: 0 | E31: 0 | F31: 0 | G31: 0
A32: 31 | B32: =IFERROR(VLOOKUP(C32,'Remo Code'!$B$2:$C$499,2,0),"") ->  | D32: 0 | E32: 0 | F32: 0 | G32: 0
A33: 32 | B33: =IFERROR(VLOOKUP(C33,'Remo Code'!$B$2:$C$499,2,0),"") ->  | D33: 0 | E33: 0 | F33: 0 | G33: 0
A34: 33 | B34: =IFERROR(VLOOKUP(C34,'Remo Code'!$B$2:$C$499,2,0),"") ->  | D34: 0 | E34: 0 | F34: 0 | G34: 0
A35: 34 | B35: =IFERROR(VLOOKUP(C35,'Remo Code'!$B$2:$C$499,2,0),"") ->  | D35: 0 | E35: 0 | F35: 0 | G35: 0
A36: 35 | B36: =IFERROR(VLOOKUP(C36,'Remo Code'!$B$2:$C$499,2,0),"") ->  | D36: 0 | E36: 0 | F36: 0 | G36: 0
A37: 36 | B37: =IFERROR(VLOOKUP(C37,'Remo Code'!$B$2:$C$499,2,0),"") ->  | D37: 0 | E37: 0 | F37: 0 | G37: 0
A38: 37 | B38: =IFERROR(VLOOKUP(C38,'Remo Code'!$B$2:$C$499,2,0),"") ->  | D38: 0 | E38: 0 | F38: 0 | G38: 0
A39: 38 | B39: =IFERROR(VLOOKUP(C39,'Remo Code'!$B$2:$C$499,2,0),"") ->  | D39: 0 | E39: 0 | F39: 0 | G39: 0
A40: 39 | B40: =IFERROR(VLOOKUP(C40,'Remo Code'!$B$2:$C$499,2,0),"") ->  | D40: 0 | E40: 0 | F40: 0 | G40: 0
A41: 40 | B41: =IFERROR(VLOOKUP(C41,'Remo Code'!$B$2:$C$499,2,0),"") ->  | D41: 0 | E41: 0 | F41: 0 | G41: 0
A42: 41 | B42: =IFERROR(VLOOKUP(C42,'Remo Code'!$B$2:$C$499,2,0),"") ->  | D42: 0 | E42: 0 | F42: 0 | G42: 0
A43: 42 | B43: =IFERROR(VLOOKUP(C43,'Remo Code'!$B$2:$C$499,2,0),"") ->  | D43: 0 | E43: 0 | F43: 0 | G43: 0
A44: 43 | B44: =IFERROR(VLOOKUP(C44,'Remo Code'!$B$2:$C$499,2,0),"") ->  | D44: 0 | E44: 0 | F44: 0 | G44: 0
A45: 44 | B45: =IFERROR(VLOOKUP(C45,'Remo Code'!$B$2:$C$499,2,0),"") ->  | D45: 0 | E45: 0 | F45: 0 | G45: 0
A46: 45 | B46: =IFERROR(VLOOKUP(C46,'Remo Code'!$B$2:$C$499,2,0),"") ->  | D46: 0 | E46: 0 | F46: 0 | G46: 0
A47: 46 | B47: =IFERROR(VLOOKUP(C47,'Remo Code'!$B$2:$C$499,2,0),"") ->  | D47: 0 | E47: 0 | F47: 0 | G47: 0
A48: 47 | B48: =IFERROR(VLOOKUP(C48,'Remo Code'!$B$2:$C$499,2,0),"") ->  | D48: 0 | E48: 0 | F48: 0 | G48: 0
A49: 48 | B49: =IFERROR(VLOOKUP(C49,'Remo Code'!$B$2:$C$499,2,0),"") ->  | D49: 0 | E49: 0 | F49: 0 | G49: 0
A50: 49 | B50: =IFERROR(VLOOKUP(C50,'Remo Code'!$B$2:$C$499,2,0),"") ->  | D50: 0 | E50: 0 | F50: 0 | G50: 0
A51: 50 | B51: =IFERROR(VLOOKUP(C51,'Remo Code'!$B$2:$C$499,2,0),"") ->  | D51: 0 | E51: 0 | F51: 0 | G51: 0
A52: 51 | B52: =IFERROR(VLOOKUP(C52,'Remo Code'!$B$2:$C$499,2,0),"") ->  | D52: 0 | E52: 0 | F52: 0 | G52: 0
A53: 52 | B53: =IFERROR(VLOOKUP(C53,'Remo Code'!$B$2:$C$499,2,0),"") ->  | D53: 0 | E53: 0 | F53: 0 | G53: 0
A54: 53 | B54: =IFERROR(VLOOKUP(C54,'Remo Code'!$B$2:$C$499,2,0),"") ->  | D54: 0 | E54: 0 | F54: 0 | G54: 0
A55: 54 | B55: =IFERROR(VLOOKUP(C55,'Remo Code'!$B$2:$C$499,2,0),"") ->  | D55: 0 | E55: 0 | F55: 0 | G55: 0
A56: 55 | B56: =IFERROR(VLOOKUP(C56,'Remo Code'!$B$2:$C$499,2,0),"") ->  | D56: 0 | E56: 0 | F56: 0 | G56: 0
A57: 56 | B57: =IFERROR(VLOOKUP(C57,'Remo Code'!$B$2:$C$499,2,0),"") ->  | D57: 0 | E57: 0 | F57: 0 | G57: 0
A58: 57 | B58: =IFERROR(VLOOKUP(C58,'Remo Code'!$B$2:$C$499,2,0),"") ->  | D58: 0 | E58: 0 | F58: 0 | G58: 0
A59: 58 | B59: =IFERROR(VLOOKUP(C59,'Remo Code'!$B$2:$C$499,2,0),"") ->  | D59: 0 | E59: 0 | F59: 0 | G59: 0
A60: 59 | B60: =IFERROR(VLOOKUP(C60,'Remo Code'!$B$2:$C$499,2,0),"") ->  | D60: 0 | E60: 0 | F60: 0 | G60: 0
A61: 60 | B61: =IFERROR(VLOOKUP(C61,'Remo Code'!$B$2:$C$499,2,0),"") ->  | D61: 0 | E61: 0 | F61: 0 | G61: 0
A62: 61 | B62: =IFERROR(VLOOKUP(C62,'Remo Code'!$B$2:$C$499,2,0),"") ->  | D62: 0 | E62: 0 | F62: 0 | G62: 0
A63: 62 | B63: =IFERROR(VLOOKUP(C63,'Remo Code'!$B$2:$C$499,2,0),"") ->  | D63: 0 | E63: 0 | F63: 0 | G63: 0
A64: 63 | B64: =IFERROR(VLOOKUP(C64,'Remo Code'!$B$2:$C$499,2,0),"") ->  | D64: 0 | E64: 0 | F64: 0 | G64: 0
A65: 64 | B65: =IFERROR(VLOOKUP(C65,'Remo Code'!$B$2:$C$499,2,0),"") ->  | D65: 0 | E65: 0 | F65: 0 | G65: 0
A66: 65 | B66: =IFERROR(VLOOKUP(C66,'Remo Code'!$B$2:$C$499,2,0),"") ->  | D66: 0 | E66: 0 | F66: 0 | G66: 0
A67: 66 | B67: =IFERROR(VLOOKUP(C67,'Remo Code'!$B$2:$C$499,2,0),"") ->  | D67: 0 | E67: 0 | F67: 0 | G67: 0
A68: 67 | B68: =IFERROR(VLOOKUP(C68,'Remo Code'!$B$2:$C$499,2,0),"") ->  | D68: 0 | E68: 0 | F68: 0 | G68: 0
A69: 68 | B69: =IFERROR(VLOOKUP(C69,'Remo Code'!$B$2:$C$499,2,0),"") ->  | D69: 0 | E69: 0 | F69: 0 | G69: 0
A70: 69 | B70: =IFERROR(VLOOKUP(C70,'Remo Code'!$B$2:$C$499,2,0),"") ->  | D70: 0 | E70: 0 | F70: 0 | G70: 0
A71: 70 | B71: =IFERROR(VLOOKUP(C71,'Remo Code'!$B$2:$C$499,2,0),"") ->  | D71: 0 | E71: 0 | F71: 0 | G71: 0
A72: 71 | B72: =IFERROR(VLOOKUP(C72,'Remo Code'!$B$2:$C$499,2,0),"") ->  | D72: 0 | E72: 0 | F72: 0 | G72: 0
B74: TOTAL | D74: =SUM(D2:D73) -> 0 | E74: =SUM($E$2:$E$73) -> 0 | F74: =SUM($F$2:$F$73) -> 0 | G74: =SUM($G$2:$G$73) -> 0

Sheet Excursion
A1: Numb | B1: Remo Code | C1: Guıde Name | D1: DEST | E1: Days | F1: Sales | G1: Diger/Sales 5% | H1: Real Comm
A2: 1 | C2: على محمد عويض الصقور المرى | E2: 0 | F2: 0 | G2: 6846.29 | H2: 6846.29 | J2: Comm from 01.09 till 15.09
A3: 2 | C3: علي عاطف سالم ابراهيم سالم | E3: 0 | F3: 0 | G3: 2145.14 | H3: 2145.14 | J3: Comm from 16.09 till 30.09
A4: 3 | C4: علي محمد عبدالله احمد شمس | E4: 0 | F4: 44192 | G4: 1767.68 | H4: 1767.68
A5: 4 | C5: عمر محمد محمود ابوزاهر | E5: 0 | F5: 58245 | G5: 2329.8 | H5: 2329.8
A6: 5 | C6: فهد سويد سلطان محمد الخوار | E6: 0 | F6: 31420 | G6: 1256.8 | H6: 1256.8
A7: 6 | C7: محمد حافظ محمد ابوالكلام كبيرالدين | E7: 0 | F7: 13090 | G7: 523.6 | H7: 523.6
A8: 7 | C8: محمد حسن حسن ناجى الجدره | E8: 0 | F8: 84860 | G8: 3394.4 | H8: 3394.4
A9: 8 | C9: محمد حمد محمد صالح الصرامى | E9: 0 | F9: 50995 | G9: 2039.8 | H9: 2039.8
A10: 9 | C10: محمد عبدالعزيز عبدالكريم يحى يعقوب | E10: 0 | F10: 47639 | G10: 1905.56 | H10: 1905.56
A11: 10 | C11: محمد عبدالله بخيت محمد المهيري | E11: 0 | F11: 13255 | G11: 530.2 | H11: 530.2
A12: 11 | C12: محمد هشام حامد على ابوخطيطه | E12: 0 | F12: 43625 | G12: 1745 | H12: 1745
A13: 12 | C13: محمد يوسف محمد ابراهيم محمد | E13: 0 | F13: 90460 | G13: 3618.4 | H13: 3618.4
A14: 13 | C14: محمد يونس محمد زحمت كش | E14: 0 | F14: 13255 | G14: 530.2 | H14: 530.2
A15: 14 | C15: بدر ناصر جابر سهل المرى | E15: 0 | F15: 2085 | G15: 83.4 | H15: 83.4
A16: 15 | C16: حزام زيد راشد المري | E16: 0 | F16: 2854 | G16: 114.16 | H16: 114.16
A17: 16 | C17: حسن محمود ابراهيم علي البنا | E17: 0 | F17: 30545 | G17: 1221.8 | H17: 1221.8
A18: 17 | C18: حمد سعيد سويلم سعد الخوار | E18: 0 | F18: 4415 | G18: 176.6 | H18: 176.6
A19: 18 | C19: حمد مبارك مفتاح فرج العبدالله | E19: 0 | F19: 61520 | G19: 2460.8 | H19: 2460.8
A20: 19 | C20: خالد عزيز حسن عبدربه حسن | E20: 0 | F20: 47600 | G20: 1904 | H20: 1904
A21: 20 | C21: دغش بريك دغش الجربوعى المرى | E21: 0 | F21: 52570 | G21: 2102.8 | H21: 2102.8
A22: 21 | C22: راشد حمد ناصر المري | E22: 0 | F22: 47683 | G22: 1907.32 | H22: 1907.32
A23: 22 | C23: راشد شريف خان عيسى خان | E23: 0 | F23: 6170 | G23: 246.8 | H23: 246.8
A24: 23 | C24: زياد مصطفى كامل محمد ابوالبها | E24: 0 | F24: 2595 | G24: 103.8 | H24: 103.8
A25: 24 | C25: سالم محمد راشد طفله الفهيده | E25: 0 | F25: 3991.5 | G25: 159.66 | H25: 159.66
A26: 25 | C26: شعيب عبدي قرني قلديد | E26: 0 | F26: 44480 | G26: 1779.2 | H26: 1779.2
A27: 26 | C27: عابدين حافظ عابدين موسى | E27: 0 | F27: 4656.5 | G27: 186.26 | H27: 186.26
A28: 27 | C28: عبدالرحمن صبرى عثمان محسن اليهرى | E28: 0 | F28: 94617 | G28: 3784.68 | H28: 3784.68
A29: 28 | C29: خالد عزيز حسن عبدربه حسن | E29: 0 | F29: 2325 | G29: 93 | H29: 93
C31: TOTAL | E31: =SUM(E2:E30) -> 0 | F31: =SUM(F2:F30) -> 899143 | G31: =SUM(G2:G30) -> 44957.15 | H31: =SUM(H2:H30) -> 44957.15
H33: kontrol

Sheet Shopping
A2: HRG. Shop Commission for October 2021
A3: Serial | B3: Remo Code | C3: Guide Name | D3: Total Sales | E3: Real Comission | F3: Signature | G3: Remarks
A4: 1 | C4: احمد حسن احمد سليمان الهيل | D4: 0 | E4: 2162.93
A5: 2 | C5: احمد عبداللاه احمد يحيى عبدالاله | D5: 0 | E5: 555.52
A6: 3 | C6: احمد محمود احمد عبدالسميع عثمان | D6: 51 | E6: 2.55
A7: 4 | C7: جمال عبدالغفار كمال على | D7: 879.5 | E7: 43.975
A8: 5 | C8: حسن محمد العبود الصالح | D8: 1857.16 | E8: 73.278
A9: 6 | C9: خالد مصعب خضر عبدالله تايه | D9: 962 | E9: 29.62
A10: 7 | C10: سيف سعيد احمد عبدالمجيد عبدالرحيم | D10: 326.9 | E10: 16.345
A11: 8 | C11: شعيب خالد شعيب جاب الله | D11: 2147.88 | E11: 67.594
A12: 9 | C12: عادل سعيد فتحي مصطفى عوض الله | D12: 594.6 | E12: 29.73
A13: 10 | C13: عامر محمد عمر عجيز | D13: 1461.39 | E13: 46.4695
A14: 11 | C14: عبدالرحمن خالد محمد سليمان الشيخ | D14: 76.19 | E14: 3.8095
A15: 12 | C15: عبدالرحمن قارى محمد اقبال | D15: 482.08 | E15: 24.104
A16: 13 | C16: عبدالله فتحي سيد محمد جمعه | D16: 645.2 | E16: 32.26
A17: 14 | C17: عدنان محمد رضا كرار سليمان | D17: 1947.44 | E17: 65.932
A18: 15 | C18: على هصام حامد على الحبابى | D18: 197.76 | E18: 9.888
A19: 16 | C19: عمر عبدالباسط ابراهيم محمد | D19: 899.47 | E19: 44.9735
A20: 17 | C20: عمر فؤاد اسماعيل ثابت | D20: 349.14 | E20: 17.457
A21: 18 | C21: عمر مصطفى محمد عوه | D21: 223.69 | E21: 11.1845
A22: 19 | C22: عمر هشام على بحيرى ابوالخير | D22: 3564.57 | E22: 114.9085
A23: 20 | C23: فادي عدنان احمد عبدالجليل | D23: 282.81 | E23: 10.5805
A24: 21 | C24: مازن محمود السيد عبدالله عبدالوهاب | D24: 411.68 | E24: 20.584
A25: 22 | C25: محمد احمد محمود شناق | D25: 2880.4 | E25: 96.98
A26: 23 | C26: محمد عبدالله السيد بيومي حسن | D26: 1049.52 | E26: 35.046
A27: 24 | C27: محمد عقيل عدنان سيد احمد | D27: 1494.58 | E27: 55.269
A28: 25 | C28: محمد علي عطيت الله ابراهيم عبداللاه | D28: 569.71 | E28: 25.9055
A29: 26 | C29: محمد عمر عبدالرحيم على | D29: 401.6 | E29: 20.08
A30: 27 | C30: محمد عمر فتحى عبدالتواب عبدالمقصود | D30: 338.61 | E30: 16.9305
A31: 28 | C31: محمود حبيب الله | D31: 340.81 | E31: 11.7005
A32: 29 | C32: محمود عادل عبدالمحسن محمد | D32: 3992.51 | E32: 123.3655
A33: 30 | C33: معتز احمد كامل على خوالده | D33: 224.84 | E33: 11.242
A34: 31 | C34: مهنا احمد محمد سيف النعيمى | D34: 170.07 | E34: 8.5035
A35: 32 | C35: مؤمن شريف محمد التاج | D35: 143.77 | E35: 7.1885
A36: 33 | C36: ياسين احمد صلاح عبداللطيف | D36: 491.39 | E36: 24.5695
A37: 34 | C37: يوسف محمد سليمان موسى عامر | D37: 54.56 | E37: 2.728
A38: 35 | C38: احمد اسامه جميل ابوالعلا | D38: 255.4 | E38: 12.77
A39: 36 | C39: أحمد اقبال ابواصبع | D39: 163.51 | E39: 8.1755
A40: 37 | C40: احمد شريف ابراهيم الدسوقى عوض | D40: 168.81 | E40: 8.4405
A41: 38 | C41: امين بن المنذر بن عثمان | D41: 79.31 | E41: 3.9655
A42: 39 | C42: براء اشرف سعيد زكي السيد | D42: 118.37 | E42: 5.9185
A43: 40 | C43: بريك سالم دغش الجربوعى المرى | D43: 28.94 | E43: 1.447
A44: 41 | C44: جوين عماد عبدالحليم داود | D44: 410.68 | E44: 20.534
A45: 42 | C45: حمد ناجى مسعد احمد الطيرى | D45: 2 | E45: 0.1
A46: 43 | C46: محمد عمر عبدالرحيم على | D46: 70.07 | E46: 3.5035
A47: 44 | C47: محمد عمر فتحى عبدالتواب عبدالمقصود | D47: 22.37 | E47: 1.1185
A48: 45 | C48: محمود حبيب الله | D48: 346.06 | E48: 17.303
A49: 46 | C49: محمود عادل عبدالمحسن محمد | D49: 25 | E49: 1.25
A50: 47 | C50: معتز احمد كامل على خوالده | D50: 10 | E50: 0.5
A51: 48 | C51: مهنا احمد محمد سيف النعيمى | D51: 34 | E51: 1.7
A52: 49 | C52: مؤمن شريف محمد التاج | D52: 0 | E52: 0
A53: 50 | C53: ياسين احمد صلاح عبداللطيف | D53: 19956 | E53: 798.24
A54: 51 | C54: يوسف محمد سليمان موسى عامر | D54: 23172 | E54: 926.88
A55: 52 | C55: احمد اسامه جميل ابوالعلا | D55: 13479 | E55: 539.16
A56: 53 | C56: أحمد اقبال ابواصبع | D56: 23308 | E56: 932.32
A57: 54 | C57: احمد شريف ابراهيم الدسوقى عوض | D57: 20246 | E57: 809.84
A58: 55 | C58: امين بن المنذر بن عثمان | D58: 10802 | E58: 432.08
A59: 56 | C59: براء اشرف سعيد زكي السيد | D59: 27911 | E59: 1116.44
A60: 57 | C60: بريك سالم دغش الجربوعى المرى | D60: 17509 | E60: 700.36
A61: 58 | C61: جوين عماد عبدالحليم داود | D61: 25979 | E61: 1039.16
A62: 59 | C62: حمد ناجى مسعد احمد الطيرى | D62: 15084 | E62: 603.36
A63: 60 | C63: خالد ناصر محمد ناصر الدهيمى | D63: 15218 | E63: 608.72
A64: 61 | C64: راشد حمد على البكرى اليافعى | D64: 7508 | E64: 300.32
A65: 62 | C65: رامي سعد فراج فرج علي | D65: 9137 | E65: 365.48
A66: 63 | C66: زكي واءلئ شحده عطيه ابوعيده | D66: 17239 | E66: 689.56
A67: 64 | C67: زيد محمود احمد خشان | D67: 9038 | E67: 361.52
A68: 65 | C68: سالم محمد سالم البطى الكعبى | D68: 647 | E68: 25.88
A69: 66 | C69: سلمان محمد اسلام ناصر احمد | D69: 1763 | E69: 70.52
A70: 67 | C70: سيف فهد موسى حسن على | D70: 4983 | E70: 199.32
A71: 68 | C71: عبدالرحمن اشرف فتحى سالم نصار | D71: 4983 | E71: 199.32
A72: 69 | C72: عبدالرحمن جمال على صالح سيد | D72: 3228 | E72: 129.12
A73: 70 | C73: عبدالرحمن محمد محسن البكري | D73: 52 | E73: 2.08
A74: 71 | C74: عبدالرحمن هيثم اديب ابودلو | D74: 181 | E74: 5.43
D75: =SUM(D4:D74) -> 302670.35 | E75: =SUM(E4:E74) -> 14765.0375
C78: =IFERROR(INDEX($F$1:$F$149,MATCH(0,INDEX(COUNTIF(C$1:$H77,$F$1:$F$149),),0)),"") -> 
C79: =IFERROR(INDEX($F$1:$F$149,MATCH(0,INDEX(COUNTIF(C$1:$H78,$F$1:$F$149),),0)),"") -> 

Sheet Bonus
A1: BONUS For The Guides From 01.10 till 31.10.2021
A2: N | B2: Name,Surname | C2: Comm. | D2: Real Bonus
C3: Amount $ | D3: Amount $
A4: 1 | B4: احمد حسن احمد سليمان الهيل | D4: =8.8+(1.4/2)+179.6+(118.8/2) -> 248.5
A5: 2 | B5: احمد عبداللاه احمد يحيى عبدالاله | D5: =(1.4/2)+(118.8/2) -> 60.1
A6: 3 | B6: احمد محمود احمد عبدالسميع عثمان | C6: 166 | D6: =C6*0.8 -> 132.8
A7: 4 | B7: جمال عبدالغفار كمال على | C7: 104 | D7: 83.2
A8: 5 | B8: حسن محمد العبود الصالح | C8: 224 | D8: 179.2
A9: 6 | B9: خالد مصعب خضر عبدالله تايه | C9: 129 | D9: 103.2
A10: 7 | B10: سيف سعيد احمد عبدالمجيد عبدالرحيم | C10: 53 | D10: 42.4
A11: 8 | B11: شعيب خالد شعيب جاب الله | C11: 54 | D11: 43.2
A12: 9 | B12: عادل سعيد فتحي مصطفى عوض الله | C12: 228 | D12: 182.4
A13: 10 | B13: عامر محمد عمر عجيز | C13: 153 | D13: 122.4
A14: 11 | B14: عبدالرحمن خالد محمد سليمان الشيخ | C14: 42 | D14: 33.6
A15: 12 | B15: عبدالرحمن قارى محمد اقبال | C15: 10 | D15: 8
A16: 13 | B16: عبدالله فتحي سيد محمد جمعه | C16: 15 | D16: 12
A17: 14 | B17: عدنان محمد رضا كرار سليمان | C17: 2 | D17: 1.6
A18: 15 | B18: على هصام حامد على الحبابى | C18: 98 | D18: 78.4
A19: 16 | B19: عمر عبدالباسط ابراهيم محمد | C19: 40 | D19: =C19*0.8 -> 32
A20: 17 | B20: عمر فؤاد اسماعيل ثابت | C20: 44 | D20: 35.2
A21: 18 | B21: عمر مصطفى محمد عوه | C21: 72 | D21: 57.6
A22: 19 | B22: عمر هشام على بحيرى ابوالخير | C22: 36 | D22: 28.8
A23: 20 | B23: فادي عدنان احمد عبدالجليل | C23: 42 | D23: 33.6
A24: 21 | B24: مازن محمود السيد عبدالله عبدالوهاب | C24: 6 | D24: =C24*0.8 -> 4.8
A25: 22 | B25: محمد احمد محمود شناق | C25: 2 | D25: 1.6
A26: 23 | B26: محمد عبدالله السيد بيومي حسن | C26: 6 | D26: 4.8
A27: 24 | B27: محمد عقيل عدنان سيد احمد | C27: 2 | D27: 1.6
A28: 25 | B28: محمد علي عطيت الله ابراهيم عبداللاه | C28: 15 | D28: 12
A29: Total | C29: =SUM(C5:C28) -> 1543 | D29: =SUM(D3:D28) -> 1543

Sheet Remo Code
